fUST/lending_fUST_20250210
["ID","MTS","AMOUNT","RATE_DAILY","PERIOD"]
[352609997,1739197841378,-500.0,0.00011369,2]
[352609998,1739197841387,-500.0,0.00011369,2]
[352609999,1739197841398,-500.0,0.00011369,2]
[352610000,1739197841407,-500.0,0.00011369,2]
[352610001,1739197841419,-500.0,0.00011369,2]
[352610002,1739197841427,-500.0,0.00011369,2]
[352610003,1739197841436,-522.02,0.00011369,2]
[352610004,1739197841446,-500.0,0.00011369,2]
[352610005,1739197841454,-737.46,0.00011369,2]
[352610006,1739197841463,-510.10829942,0.00011369,2]
[352610007,1739197841472,-500.0,0.00011369,2]
[352610008,1739197841481,-500.0,0.00011369,2]
[352610009,1739197841491,-500.0,0.00011369,2]
[352610010,1739197841501,-500.0,0.00011369,2]
[352610011,1739197841511,-500.0,0.00011369,2]
[352610012,1739197841520,-500.0,0.00011369,2]
[352610013,1739197841529,-500.0,0.00011369,2]
[352610014,1739197841538,-500.0,0.00011369,2]
[352610015,1739197841547,-500.0,0.00011369,2]
[352610016,1739197841557,-500.0,0.00011369,2]
[352610017,1739197841566,-500.0,0.00011369,2]
[352610018,1739197841575,-500.0,0.00011369,2]
[352610019,1739197841584,-500.0,0.00011369,2]
[352610020,1739197841594,-500.0,0.00011369,2]
[352610021,1739197841603,-500.0,0.00011369,2]
[352610022,1739197841613,-500.0,0.00011369,2]
[352610023,1739197841622,-500.0,0.00011369,2]
[352610024,1739197841631,-500.0,0.00011369,2]
[352610025,1739197841640,-423.70414032,0.00011369,2]
[352610026,1739197841649,-500.0,0.00011369,2]
[352610027,1739197841659,-663.13,0.00011369,2]
[352610028,1739197841671,-500.0,0.00011369,2]
[352610029,1739197841680,-500.0,0.00011369,2]
[352610030,1739197841689,-500.0,0.00011369,2]
[352610031,1739197841699,-600.05,0.00011369,2]
[352610032,1739197841708,-500.0,0.00011369,2]
[352610033,1739197841718,-15451.01,0.00011369,2]
[352610034,1739197841727,-500.0,0.00011369,2]
[352610035,1739197841736,-2370.78,0.00011369,2]
[352610036,1739197841745,-500.0,0.00011369,2]
[352610037,1739197841754,-832.64,0.00011369,2]
[352610038,1739197841763,-500.0,0.00011369,2]
[352610039,1739197841772,-500.0,0.00011369,2]
[352610040,1739197841782,-388.23739994,0.00011369,2]
[352610041,1739197841791,-500.0,0.00011369,2]
[352610042,1739197841800,-500.0,0.00011369,2]
[352610043,1739197841809,-1555.16,0.00011369,2]
[352610044,1739197841818,-6604.89,0.00011369,2]
[352610045,1739197841828,-500.0,0.00011369,2]
[352610046,1739197841837,-500.0,0.00011369,2]
[352610047,1739197841846,-500.0,0.00011369,2]
[352610048,1739197841855,-558.35,0.00011369,2]
[352610049,1739197841864,-756.91,0.00011369,2]
[352610050,1739197841873,-271.1493409,0.00011369,2]
[352610051,1739197841883,-503.66,0.00011369,2]
[352610052,1739197841892,-500.0,0.00011369,2]
[352610053,1739197841901,-460.0,0.00011369,2]
[352610054,1739197841910,-500.0,0.00011369,2]
[352610055,1739197841921,-2039.84,0.00011369,2]
[352610056,1739197841930,-500.0,0.00011369,2]
[352610057,1739197841939,-500.0,0.00011369,2]
[352610058,1739197841948,-500.0,0.00011369,2]
[352610059,1739197841957,-500.0,0.00011369,2]
[352610060,1739197841967,-500.0,0.00011369,2]
[352610061,1739197841976,-500.0,0.00011369,2]
[352610062,1739197841985,-664.98,0.00011369,2]
[352610063,1739197841995,-197.61312547,0.00011369,2]
[352610064,1739197842008,-302.38687453,0.00011369,2]
[352610065,1739197842017,-500.0,0.00011369,2]
[352610066,1739197842026,-500.0,0.00011369,2]
[352610067,1739197842035,-500.0,0.00011369,2]
[352610068,1739197842045,-500.0,0.00011369,2]
[352610069,1739197842055,-500.0,0.00011369,2]
[352610070,1739197842064,-500.0,0.00011369,2]
[352610071,1739197842074,-625.41034347,0.00011369,2]
[352610072,1739197842083,-500.0,0.00011369,2]
[352610073,1739197842092,-500.0,0.00011369,2]
[352610074,1739197842102,-500.0,0.00011369,2]
[352610075,1739197842111,-500.0,0.00011369,2]
[352610076,1739197842120,-3174.27,0.00011369,2]
[352610077,1739197842131,-5186.45,0.00011369,2]
[352610078,1739197842140,-500.0,0.00011369,2]
[352610079,1739197842150,-961.7,0.00011369,2]
[352610080,1739197842159,-500.0,0.00011369,2]
[352610081,1739197842170,-500.0,0.00011369,2]
[352610082,1739197842179,-1378.48,0.00011369,2]
[352610083,1739197842189,-579.9,0.00011369,2]
[352610084,1739197842201,-540.89,0.00011369,2]
[352610085,1739197842211,-500.0,0.00011369,2]
[352610086,1739197842220,-1022.13,0.00011369,2]
[352610087,1739197842230,-500.0,0.00011369,2]
[352610088,1739197842239,-500.0,0.00011369,2]
[352610090,1739197842249,-500.0,0.00011369,2]
[352610091,1739197842258,-1347.21,0.00011369,2]
[352610092,1739197842268,-619.93,0.00011369,2]
[352610093,1739197842277,-500.0,0.00011369,2]
[352610094,1739197842287,-500.0,0.00011369,2]
[352610095,1739197842296,-500.0,0.00011369,2]
[352610096,1739197842306,-500.0,0.00011369,2]
[352610097,1739197842315,-538.09,0.00011369,2]
[352610098,1739197842326,-500.0,0.00011369,2]
[352610100,1739197842336,-500.0,0.00011369,2]
[352610101,1739197842346,-500.0,0.00011369,2]
[352610102,1739197842355,-500.0,0.00011369,2]
[352610103,1739197842365,-904.0,0.00011369,2]
[352610104,1739197842375,-500.0,0.00011369,2]
[352610105,1739197842385,-500.0,0.00011369,2]
[352610106,1739197842394,-500.0,0.00011369,2]
[352610107,1739197842405,-518.8,0.00011369,2]
[352610108,1739197842414,-500.0,0.00011369,2]
[352610110,1739197842505,-500.0,0.00011369,2]
[352610111,1739197842524,-1280.31,0.00011369,2]
[352610112,1739197842533,-500.0,0.00011369,2]
[352610113,1739197842543,-507.98663694,0.00011409,2]
[352610114,1739197842552,-500.0,0.00011416,2]
[352610115,1739197842561,-500.0,0.00011436,2]
[352610116,1739197842570,-500.0,0.00011436,2]
[352610117,1739197842579,-500.0,0.00011436,2]
[352610118,1739197842588,-500.0,0.00011436,2]
[352610119,1739197842599,-500.0,0.00011436,2]
[352610121,1739197842608,-500.0,0.00011436,2]
[352610122,1739197842618,-500.0,0.00011436,2]
[352610124,1739197842627,-501.09183101,0.00011451,2]
[352610126,1739197842636,-272.87832129,0.00011451,2]
[352610127,1739197842645,-156.47861849,0.00011451,2]
[352610129,1739197842655,-500.0,0.00011451,2]
[352610130,1739197842664,-500.0,0.00011451,2]
[352610131,1739197842675,-278.54427922,0.00011458,2]
[352610132,1739197842684,-632.31587076,0.00011458,2]
[352610133,1739197842693,-250.80127485,0.00011462,2]
[352610134,1739197842702,-500.0,0.00011462,2]
[352610135,1739197842712,-500.0,0.00011506,2]
[352610136,1739197842721,-256.76240735,0.00011506,2]
[352610137,1739197842730,-500.0,0.00011506,2]
[352610138,1739197842740,-500.0,0.00011506,2]
[352610139,1739197842749,-331.73907005,0.00011506,2]
[352610158,1739197843346,-630.64,0.00010958,2]
[352610159,1739197843358,-194.020004,0.00010958,2]
[352610160,1739197843372,-500.0,0.00010958,2]
[352610161,1739197843386,-500.0,0.00011095,2]
[352610162,1739197843400,-500.0,0.00011232,2]
[352610163,1739197843413,-168.26092995,0.00011506,2]
[352610164,1739197843427,-500.0,0.00011506,2]
[352610165,1739197843440,-500.0,0.00011506,2]
[352610166,1739197843451,-599.21,0.00011506,2]
[352610167,1739197843466,-612.77,0.00011506,2]
[352610168,1739197843479,-500.0,0.00011506,2]
[352610169,1739197843491,-500.0,0.00011506,2]
[352610170,1739197843502,-500.0,0.00011506,2]
[352610171,1739197843515,-500.0,0.00011506,2]
[352610172,1739197843527,-410.35298463,0.00011506,2]
[352610174,1739197843540,-522.02,0.00011506,2]
[352610176,1739197843554,-500.0,0.00011506,2]
[352610178,1739197843568,-737.46,0.00011506,2]
[352610180,1739197843581,-500.0,0.00011506,2]
[352610181,1739197843595,-500.0,0.00011506,2]
[352610183,1739197843609,-500.0,0.00011506,2]
[352610185,1739197843621,-500.0,0.00011506,2]
[352610186,1739197843632,-500.0,0.00011506,2]
[352610187,1739197843644,-500.0,0.00011506,2]
[352610188,1739197843658,-500.0,0.00011506,2]
[352610190,1739197843674,-500.0,0.00011506,2]
[352610193,1739197843684,-500.0,0.00011506,2]
[352610195,1739197843695,-500.0,0.00011506,2]
[352610197,1739197843708,-500.0,0.00011506,2]
[352610199,1739197843720,-500.0,0.00011506,2]
[352610203,1739197843734,-500.0,0.00011506,2]
[352610204,1739197843745,-500.0,0.00011506,2]
[352610206,1739197843756,-611.99,0.00011506,2]
[352610208,1739197843766,-500.0,0.00011506,2]
[352610210,1739197843778,-500.0,0.00011506,2]
[352610211,1739197843790,-500.0,0.00011506,2]
[352610212,1739197843801,-500.0,0.00011506,2]
[352610213,1739197843813,-600.05,0.00011506,2]
[352610214,1739197843823,-500.0,0.00011506,2]
[352610215,1739197843835,-15451.01,0.00011506,2]
[352610216,1739197843847,-500.0,0.00011506,2]
[352610217,1739197843858,-500.0,0.00011506,2]
[352610218,1739197843870,-832.64,0.00011506,2]
[352610219,1739197843881,-445.12929551,0.00011506,2]
[352610220,1739197843893,-500.0,0.00011506,2]
[352610221,1739197843904,-493.81536164,0.00011506,2]
[352610222,1739197843916,-500.0,0.00011506,2]
[352610223,1739197843930,-1555.16,0.00011506,2]
[352610224,1739197843941,-6604.89,0.00011506,2]
[352610225,1739197843953,-500.0,0.00011506,2]
[352610226,1739197843965,-218.6098342,0.00011506,2]
[352610227,1739197843976,-500.0,0.00011506,2]
[352610228,1739197843988,-558.35,0.00011506,2]
[352610229,1739197844000,-756.91,0.00011506,2]
[352610230,1739197844011,-503.66,0.00011506,2]
[352610231,1739197844023,-500.0,0.00011506,2]
[352610232,1739197844034,-2039.84,0.00011506,2]
[352610233,1739197844046,-500.0,0.00011506,2]
[352610234,1739197844057,-500.0,0.00011506,2]
[352610235,1739197844069,-500.0,0.00011506,2]
[352610236,1739197844080,-500.0,0.00011506,2]
[352610237,1739197844092,-500.0,0.00011506,2]
[352610238,1739197844104,-500.0,0.00011506,2]
[352610239,1739197844114,-664.98,0.00011506,2]
[352610240,1739197844124,-500.0,0.00011506,2]
[352610241,1739197844134,-500.0,0.00011506,2]
[352610242,1739197844144,-500.0,0.00011506,2]
[352610243,1739197844154,-289.21638713,0.00011506,2]
[352610244,1739197844164,-500.0,0.00011506,2]
[352610245,1739197844175,-500.0,0.00011506,2]
[352610246,1739197844185,-500.0,0.00011506,2]
[352610247,1739197844194,-500.0,0.00011506,2]
[352610248,1739197844204,-500.0,0.00011506,2]
[352610249,1739197844214,-3174.27,0.00011506,2]
[352610250,1739197844223,-5186.45,0.00011506,2]
[352610251,1739197844232,-500.0,0.00011506,2]
[352610252,1739197844241,-961.7,0.00011506,2]
[352610253,1739197844251,-500.0,0.00011506,2]
[352610254,1739197844261,-1378.48,0.00011506,2]
[352610255,1739197844271,-579.9,0.00011506,2]
[352610256,1739197844280,-540.89,0.00011506,2]
[352610257,1739197844290,-500.0,0.00011506,2]
[352610258,1739197844299,-1022.13,0.00011506,2]
[352610259,1739197844309,-500.0,0.00011506,2]
[352610260,1739197844318,-177.69,0.00011506,2]
[352610261,1739197844331,-1347.21,0.00011506,2]
[352610262,1739197844341,-619.93,0.00011506,2]
[352610263,1739197844518,-500.0,0.00011506,2]
[352610264,1739197844533,-500.0,0.00011506,2]
[352610265,1739197844543,-500.0,0.00011506,2]
[352610266,1739197844552,-538.09,0.00011506,2]
[352610267,1739197844561,-598.44,0.00011506,2]
[352610268,1739197844570,-500.0,0.00011506,2]
[352610269,1739197844579,-904.0,0.00011506,2]
[352610270,1739197844588,-500.0,0.00011506,2]
[352610271,1739197844598,-500.0,0.00011506,2]
[352610272,1739197844607,-500.0,0.00011506,2]
[352610273,1739197844617,-518.8,0.00011506,2]
[352610274,1739197844626,-500.0,0.00011506,2]
[352610275,1739197844635,-1280.31,0.00011506,2]
[352610276,1739197844644,-500.0,0.00011506,2]
[352610277,1739197844653,-500.0,0.00011506,2]
[352610278,1739197844663,-500.0,0.00011515,2]
[352610279,1739197844674,-500.0,0.00011521,2]
[352610280,1739197844691,-500.0,0.00011579,2]
[352610281,1739197844700,-45619.26047126,0.00011614,2]
[352610282,1739197844710,-500.0,0.00011643,2]
[352610283,1739197844719,-500.0,0.00011643,2]
[352610284,1739197844729,-500.0,0.00011643,2]
[352610285,1739197844738,-599.21,0.00011643,2]
[352610286,1739197844748,-612.77,0.00011643,2]
[352610287,1739197844757,-500.0,0.00011643,2]
[352610288,1739197844766,-500.0,0.00011643,2]
[352610289,1739197844775,-500.0,0.00011643,2]
[352610290,1739197844784,-500.0,0.00011643,2]
[352610291,1739197844793,-522.02,0.00011643,2]
[352610292,1739197844802,-500.0,0.00011643,2]
[352610293,1739197844811,-737.46,0.00011643,2]
[352610294,1739197844820,-500.0,0.00011643,2]
[352610295,1739197844829,-500.0,0.00011643,2]
[352610296,1739197844838,-500.0,0.00011643,2]
[352610297,1739197844848,-500.0,0.00011643,2]
[352610298,1739197844857,-500.0,0.00011643,2]
[352610299,1739197844866,-500.0,0.00011643,2]
[352610300,1739197844875,-500.0,0.00011643,2]
[352610301,1739197844884,-500.0,0.00011643,2]
[352610302,1739197844894,-500.0,0.00011643,2]
[352610303,1739197844903,-500.0,0.00011643,2]
[352610304,1739197844912,-500.0,0.00011643,2]
[352610305,1739197844921,-500.0,0.00011643,2]
[352610306,1739197844930,-500.0,0.00011643,2]
[352610307,1739197844939,-500.0,0.00011643,2]
[352610308,1739197844948,-600.05,0.00011643,2]
[352610309,1739197844957,-500.0,0.00011643,2]
[352610310,1739197844967,-15451.01,0.00011643,2]
[352610311,1739197844976,-500.0,0.00011643,2]
[352610312,1739197844985,-500.0,0.00011643,2]
[352610313,1739197844994,-832.64,0.00011643,2]
[352610314,1739197845003,-500.0,0.00011643,2]
[352610315,1739197845012,-500.0,0.00011643,2]
[352610316,1739197845021,-1555.16,0.00011643,2]
[352610317,1739197845031,-6604.89,0.00011643,2]
[352610318,1739197845040,-500.0,0.00011643,2]
[352610319,1739197845050,-500.0,0.00011643,2]
[352610320,1739197845060,-558.35,0.00011643,2]
[352610321,1739197845070,-756.91,0.00011643,2]
[352610322,1739197845079,-503.66,0.00011643,2]
[352610323,1739197845088,-2039.84,0.00011643,2]
[352610324,1739197845097,-500.0,0.00011643,2]
[352610325,1739197845106,-500.0,0.00011643,2]
[352610326,1739197845115,-500.0,0.00011643,2]
[352610327,1739197845125,-151.0,0.00011643,2]
[352610328,1739197845135,-500.0,0.00011643,2]
[352610329,1739197845144,-500.0,0.00011643,2]
[352610330,1739197845154,-500.0,0.00011643,2]
[352610331,1739197845163,-664.98,0.00011643,2]
[352610332,1739197845176,-500.0,0.00011643,2]
[352610333,1739197845185,-500.0,0.00011643,2]
[352610334,1739197845195,-500.0,0.00011643,2]
[352610335,1739197845205,-151.0,0.00011643,2]
[352610336,1739197845215,-486.65402621,0.00011643,2]
[352610337,1739197845225,-500.0,0.00011643,2]
[352610338,1739197845234,-515.14,0.00011643,2]
[352610339,1739197845244,-500.0,0.00011643,2]
[352610340,1739197845254,-500.0,0.00011643,2]
[352610341,1739197845263,-3174.27,0.00011643,2]
[352610342,1739197845273,-5186.45,0.00011643,2]
[352610343,1739197845283,-500.0,0.00011643,2]
[352610344,1739197845293,-961.7,0.00011643,2]
[352610345,1739197845303,-500.0,0.00011643,2]
[352610346,1739197845312,-1378.48,0.00011643,2]
[352610347,1739197845322,-579.9,0.00011643,2]
[352610348,1739197845334,-540.89,0.00011643,2]
[352610349,1739197845344,-1022.13,0.00011643,2]
[352610350,1739197845353,-500.0,0.00011643,2]
[352610351,1739197845363,-1347.21,0.00011643,2]
[352610352,1739197845374,-619.93,0.00011643,2]
[352610353,1739197845385,-500.0,0.00011643,2]
[352610354,1739197845395,-500.0,0.00011643,2]
[352610355,1739197845407,-500.0,0.00011643,2]
[352610356,1739197845418,-538.09,0.00011643,2]
[352610357,1739197845432,-500.0,0.00011643,2]
[352610358,1739197845443,-904.0,0.00011643,2]
[352610359,1739197845453,-500.0,0.00011643,2]
[352610360,1739197845463,-500.0,0.00011643,2]
[352610361,1739197845472,-500.0,0.00011643,2]
[352610362,1739197845482,-518.8,0.00011643,2]
[352610363,1739197845492,-254.66862441,0.00011643,2]
[352610364,1739197845501,-1280.31,0.00011643,2]
[352610365,1739197845511,-500.0,0.00011643,2]
[352610366,1739197845521,-500.0,0.00011643,2]
[352610367,1739197845529,-1000.0,0.00011725,2]
[352610368,1739197845538,-1466.88691407,0.00011768,2]
[352610369,1739197845547,-500.0,0.0001178,2]
[352610370,1739197845557,-500.0,0.0001178,2]
[352610371,1739197845566,-500.0,0.0001178,2]
[352610372,1739197845575,-599.21,0.0001178,2]
[352610373,1739197845584,-612.77,0.0001178,2]
[352610374,1739197845594,-500.0,0.0001178,2]
[352610375,1739197845603,-500.0,0.0001178,2]
[352610376,1739197845613,-500.0,0.0001178,2]
[352610377,1739197845622,-500.0,0.0001178,2]
[352610378,1739197845631,-522.02,0.0001178,2]
[352610379,1739197845640,-551.86709705,0.0001178,2]
[352610380,1739197845649,-737.46,0.0001178,2]
[352610381,1739197845658,-500.0,0.0001178,2]
[352610382,1739197845667,-500.0,0.0001178,2]
[352610383,1739197845679,-151.0,0.0001178,2]
[352610384,1739197845688,-151.0,0.0001178,2]
[352610385,1739197845697,-500.0,0.0001178,2]
[352610386,1739197845706,-500.0,0.0001178,2]
[352610387,1739197845715,-500.0,0.0001178,2]
[352610388,1739197845724,-500.0,0.0001178,2]
[352610389,1739197845733,-500.0,0.0001178,2]
[352610390,1739197845743,-500.0,0.0001178,2]
[352610392,1739197845752,-500.0,0.0001178,2]
[352610394,1739197845761,-151.0,0.0001178,2]
[352610395,1739197845770,-500.0,0.0001178,2]
[352610396,1739197845779,-500.0,0.0001178,2]
[352610397,1739197845788,-151.0,0.0001178,2]
[352610398,1739197845797,-219.49418036,0.0001178,2]
[352610399,1739197845806,-600.05,0.0001178,2]
[352610400,1739197845815,-500.0,0.0001178,2]
[352610401,1739197845824,-15451.01,0.0001178,2]
[352610402,1739197845834,-477.62032581,0.0001178,2]
[352610404,1739197845843,-151.0,0.0001178,2]
[352610405,1739197845852,-268.30096,0.0001178,2]
[352610406,1739197845861,-500.0,0.0001178,2]
[352610407,1739197845871,-832.64,0.0001178,2]
[352610408,1739197845880,-268.30096,0.0001178,2]
[352610409,1739197845889,-500.0,0.0001178,2]
[352610410,1739197845898,-151.0,0.0001178,2]
[352610411,1739197845907,-1555.16,0.0001178,2]
[352610413,1739197845917,-6604.89,0.0001178,2]
[352610414,1739197845928,-500.0,0.0001178,2]
[352610415,1739197845937,-151.0,0.0001178,2]
[352610416,1739197845947,-500.0,0.0001178,2]
[352610417,1739197845955,-558.35,0.0001178,2]
[352610418,1739197845964,-756.91,0.0001178,2]
[352610419,1739197845973,-503.66,0.0001178,2]
[352610420,1739197845983,-2039.84,0.0001178,2]
[352610421,1739197845992,-500.0,0.0001178,2]
[352610422,1739197846001,-500.0,0.0001178,2]
[352610423,1739197846010,-500.0,0.0001178,2]
[352610424,1739197846019,-281.764323,0.0001178,2]
[352610425,1739197846028,-562.55,0.0001178,2]
[352610426,1739197846037,-500.0,0.0001178,2]
[352610427,1739197846047,-281.764323,0.0001178,2]
[352610428,1739197846056,-664.98,0.0001178,2]
[352610429,1739197846065,-500.0,0.0001178,2]
[352610430,1739197846075,-267.49,0.0001178,2]
[352610431,1739197846084,-500.0,0.0001178,2]
[352610432,1739197846094,-500.0,0.0001178,2]
[352610433,1739197846103,-3174.27,0.0001178,2]
[352610434,1739197846113,-178.779312,0.0001178,2]
[352610435,1739197846123,-5186.45,0.0001178,2]
[352610437,1739197846132,-178.779312,0.0001178,2]
[352610439,1739197846143,-500.0,0.0001178,2]
[352610440,1739197846153,-961.7,0.0001178,2]
[352610441,1739197846163,-484.80481335,0.0001178,2]
[352610442,1739197846173,-1378.48,0.0001178,2]
[352610443,1739197846182,-579.9,0.0001178,2]
[352610444,1739197846192,-540.89,0.0001178,2]
[352610445,1739197846201,-1022.13,0.0001178,2]
[352610447,1739197846211,-500.0,0.0001178,2]
[352610448,1739197846220,-1347.21,0.0001178,2]
[352610449,1739197846230,-619.93,0.0001178,2]
[352610450,1739197846239,-500.0,0.0001178,2]
[352610451,1739197846249,-500.0,0.0001178,2]
[352610452,1739197846259,-500.0,0.0001178,2]
[352610453,1739197846269,-538.09,0.0001178,2]
[352610454,1739197846279,-500.0,0.0001178,2]
[352610456,1739197846288,-904.0,0.0001178,2]
[352610457,1739197846299,-500.0,0.0001178,2]
[352610458,1739197846308,-500.0,0.0001178,2]
[352610459,1739197846318,-500.0,0.0001178,2]
[352610460,1739197846333,-518.8,0.0001178,2]
[352610461,1739197846343,-1280.31,0.0001178,2]
[352610462,1739197846354,-500.0,0.0001178,2]
[352610463,1739197846363,-500.0,0.0001178,2]
[352610464,1739197846375,-151.0,0.000118,2]
[352610465,1739197846385,-151.0,0.000119,2]
[352610466,1739197846395,-500.0,0.00011917,2]
[352610467,1739197846406,-500.0,0.00011917,2]
[352610468,1739197846416,-500.0,0.00011917,2]
[352610469,1739197846431,-599.21,0.00011917,2]
[352610470,1739197846442,-612.77,0.00011917,2]
[352610472,1739197846453,-500.0,0.00011917,2]
[352610473,1739197846463,-500.0,0.00011917,2]
[352610474,1739197846473,-500.0,0.00011917,2]
[352610475,1739197846484,-500.0,0.00011917,2]
[352610476,1739197846494,-522.02,0.00011917,2]
[352610477,1739197846504,-737.46,0.00011917,2]
[352610478,1739197846515,-151.0,0.00011917,2]
[352610479,1739197846525,-151.0,0.00011917,2]
[352610480,1739197846534,-500.0,0.00011917,2]
[352610481,1739197846544,-211.04,0.00011917,2]
[352610482,1739197846554,-387.060715,0.00011917,2]
[352610483,1739197846564,-387.060715,0.00011917,2]
[352610484,1739197846573,-500.0,0.00011917,2]
[352610485,1739197846583,-500.0,0.00011917,2]
[352610486,1739197846593,-176.741177,0.00011917,2]
[352610487,1739197846603,-500.0,0.00011917,2]
[352610489,1739197846612,-151.0,0.00011917,2]
[352610490,1739197846622,-500.0,0.00011917,2]
[352610491,1739197846632,-500.0,0.00011917,2]
[352610492,1739197846641,-500.0,0.00011917,2]
[352610493,1739197846651,-500.0,0.00011917,2]
[352610494,1739197846661,-199.3,0.00011917,2]
[352610495,1739197846672,-151.0,0.00011917,2]
[352610496,1739197846683,-151.0,0.00011917,2]
[352610497,1739197846693,-600.05,0.00011917,2]
[352610498,1739197846704,-500.0,0.00011917,2]
[352610499,1739197846714,-15451.01,0.00011917,2]
[352610500,1739197846724,-500.0,0.00011917,2]
[352610501,1739197846735,-832.64,0.00011917,2]
[352610502,1739197846745,-500.0,0.00011917,2]
[352610503,1739197846755,-151.0,0.00011917,2]
[352610504,1739197846765,-151.0,0.00011917,2]
[352610505,1739197846775,-1555.16,0.00011917,2]
[352610506,1739197846785,-6604.89,0.00011917,2]
[352610507,1739197846796,-500.0,0.00011917,2]
[352610508,1739197846806,-203.798839,0.00011917,2]
[352610509,1739197846816,-500.0,0.00011917,2]
[352610510,1739197846826,-558.35,0.00011917,2]
[352610511,1739197846836,-203.798839,0.00011917,2]
[352610512,1739197846846,-756.91,0.00011917,2]
[352610513,1739197846855,-503.66,0.00011917,2]
[352610514,1739197846865,-2039.84,0.00011917,2]
[352610515,1739197846875,-408.0,0.00011917,2]
[352610516,1739197846885,-500.0,0.00011917,2]
[352610517,1739197846895,-500.0,0.00011917,2]
[352610518,1739197846904,-500.0,0.00011917,2]
[352610519,1739197846913,-151.0,0.00011917,2]
[352610520,1739197846927,-213.258124,0.00011917,2]
[352610521,1739197846937,-664.98,0.00011917,2]
[352610522,1739197846946,-500.0,0.00011917,2]
[352610523,1739197846956,-500.0,0.00011917,2]
[352610524,1739197846965,-500.0,0.00011917,2]
[352610525,1739197846975,-3174.27,0.00011917,2]
[352610526,1739197846985,-5186.45,0.00011917,2]
[352610527,1739197846995,-500.0,0.00011917,2]
[352610528,1739197847005,-961.7,0.00011917,2]
[352610529,1739197847015,-1378.48,0.00011917,2]
[352610530,1739197847025,-579.9,0.00011917,2]
[352610531,1739197847034,-540.89,0.00011917,2]
[352610532,1739197847043,-1022.13,0.00011917,2]
[352610533,1739197847052,-500.0,0.00011917,2]
[352610534,1739197847062,-46.28413672,0.00011917,2]
[352610535,1739197847080,-1300.92586328,0.00011917,2]
[352610536,1739197847090,-619.93,0.00011917,2]
[352610537,1739197847099,-500.0,0.00011917,2]
[352610538,1739197847109,-500.0,0.00011917,2]
[352610539,1739197847118,-500.0,0.00011917,2]
[352610540,1739197847128,-538.09,0.00011917,2]
[352610541,1739197847137,-500.0,0.00011917,2]
[352610542,1739197847147,-904.0,0.00011917,2]
[352610543,1739197847158,-200.24,0.00011917,2]
[352610544,1739197847168,-500.0,0.00011917,2]
[352610545,1739197847185,-518.8,0.00011917,2]
[352610546,1739197847196,-1280.31,0.00011917,2]
[352610547,1739197847205,-500.0,0.00011917,2]
[352610548,1739197847215,-500.0,0.00011917,2]
[352610549,1739197847225,-609.20373609,0.00011955,2]